[Event "Elite Hotels Open 2023"]
[Site "Elite Stadshotellet, Kungsgatan 6, Vaxjo, Sweden"]
[Date "2023.02.11"]
[Round "5.16"]
[White "Rasti, Arvin"]
[Black "Berg, Roy"]
[Result "1-0"]
[TimeControl "15 minutes + 5 seconds per move from move one (Round 1 - 4) / 90 minutes + 30 seconds per move from move one (Round 5 - 8)"]
[WhiteFideId "1741160"]
[BlackFideId "1711458"]
[WhiteElo "2211"]
[BlackElo "1948"]

1. e4 {[%clk 01:30:57]} {[%emt 00:00:02]} c6 {[%clk 01:30:49]} {[%emt
00:00:11]} 2. Nf3 {[%clk 01:31:09]} {[%emt 00:00:18]} d5 {[%clk 01:30:07]}
{[%emt 00:01:12]} 3. Nc3 {[%clk 01:31:37]} {[%emt 00:00:02]} Bg4 {[%clk
01:29:46]} {[%emt 00:00:52]} 4. h3 {[%clk 01:31:53]} {[%emt 00:00:13]} Bxf3 5.
Qxf3 {[%clk 01:32:21]} e6 {[%clk 01:27:26]} {[%emt 00:00:20]} 6. g3 {[%clk
01:28:05]} {[%emt 00:04:47]} Nf6 {[%clk 01:24:36]} {[%emt 00:03:20]} 7. Bg2
{[%clk 01:27:56]} {[%emt 00:00:39]} dxe4 {[%clk 01:19:20]} {[%emt 00:05:46]} 8.
Nxe4 {[%clk 01:28:19]} {[%emt 00:00:07]} Be7 {[%clk 01:19:07]} {[%emt
00:00:42]} 9. Qb3 {[%clk 01:24:35]} {[%emt 00:04:14]} Qb6 {[%clk 01:12:05]}
{[%emt 00:07:33]} 10. Qxb6 {[%clk 01:18:33]} {[%emt 00:06:32]} axb6 {[%clk
01:12:26]} {[%emt 00:00:08]} 11. O-O {[%clk 01:18:30]} {[%emt 00:00:33]} Nbd7
{[%clk 01:11:10]} {[%emt 00:01:46]} 12. d3 {[%clk 01:18:15]} {[%emt 00:00:45]}
O-O {[%clk 01:10:46]} {[%emt 00:00:55]} 13. Bg5 {[%clk 01:16:56]} {[%emt
00:01:49]} Rfe8 {[%clk 01:10:27]} {[%emt 00:00:48]} 14. Nxf6+ {[%clk 01:16:34]}
{[%emt 00:00:53]} Bxf6 {[%clk 01:01:46]} {[%emt 00:09:10]} 15. Bxf6 {[%clk
01:17:00]} {[%emt 00:00:03]} Nxf6 {[%clk 01:02:08]} {[%emt 00:00:10]} 16. Rfe1
{[%clk 01:16:13]} {[%emt 00:01:17]} Red8 {[%clk 01:00:48]} {[%emt 00:01:50]} 17.
f4 {[%clk 01:15:17]} {[%emt 00:01:25]} Kf8 {[%clk 01:00:25]} {[%emt 00:00:53]}
18. Kf2 {[%clk 01:11:52]} {[%emt 00:03:55]} Rd7 {[%clk 00:58:55]} {[%emt
00:02:00]} 19. a3 {[%clk 01:11:22]} {[%emt 00:01:00]} b5 {[%clk 00:49:05]}
{[%emt 00:10:20]} 20. Rad1 {[%clk 01:05:27]} {[%emt 00:06:23]} Rad8 {[%clk
00:48:44]} {[%emt 00:00:53]} 21. Bf3 {[%clk 01:05:35]} {[%emt 00:00:21]} h6
{[%clk 00:41:46]} {[%emt 00:07:28]} 22. Ke2 {[%clk 01:03:40]} {[%emt 00:02:26]}
Ke7 {[%clk 00:41:53]} {[%emt 00:00:24]} 23. c3 {[%clk 01:01:22]} {[%emt
00:02:47]} Kd6 {[%clk 00:39:56]} {[%emt 00:02:27]} 24. d4 {[%clk 01:00:09]}
{[%emt 00:01:43]} Kc7 {[%clk 00:39:05]} {[%emt 00:01:23]} 25. Kf2 {[%clk
00:59:55]} {[%emt 00:00:43]} Nd5 {[%clk 00:37:54]} {[%emt 00:01:41]} 26. Be4
{[%clk 00:55:53]} {[%emt 00:04:32]} Nb6 {[%clk 00:37:54]} {[%emt 00:00:30]} 27.
Rc1 {[%clk 00:52:25]} {[%emt 00:03:57]} Re7 {[%clk 00:31:43]} {[%emt 00:06:41]}
28. Re2 {[%clk 00:51:24]} {[%emt 00:01:30]} Rdd7 {[%clk 00:30:13]} {[%emt
00:02:01]} 29. Rce1 {[%clk 00:50:29]} {[%emt 00:01:24]} Rd8 {[%clk 00:30:31]}
{[%emt 00:00:14]} 30. Bb1 {[%clk 00:49:59]} {[%emt 00:00:59]} Rde8 {[%clk
00:29:55]} {[%emt 00:01:07]} 31. g4 {[%clk 00:49:41]} {[%emt 00:00:48]} Kd6
{[%clk 00:25:35]} {[%emt 00:04:50]} 32. h4 {[%clk 00:49:10]} {[%emt 00:01:00]}
f6 {[%clk 00:25:33]} {[%emt 00:00:32]} 33. Bg6 {[%clk 00:48:31]} {[%emt
00:01:09]} Rf8 {[%clk 00:18:45]} {[%emt 00:07:19]} 34. Kg3 {[%clk 00:43:51]}
{[%emt 00:05:09]} Nd5 {[%clk 00:18:22]} {[%emt 00:00:54]} 35. Bc2 {[%clk
00:42:17]} {[%emt 00:02:03]} Rfe8 {[%clk 00:18:05]} {[%emt 00:00:46]} 36. a4
{[%clk 00:40:26]} {[%emt 00:02:22]} bxa4 {[%clk 00:15:58]} {[%emt 00:02:37]} 37.
c4 {[%clk 00:38:11]} {[%emt 00:02:45]} Nb4 {[%clk 00:13:20]} {[%emt 00:03:09]}
38. Bxa4 {[%clk 00:37:56]} {[%emt 00:00:45]} Ra8 {[%clk 00:11:21]} {[%emt
00:02:29]} 39. Bb3 {[%clk 00:37:58]} {[%emt 00:00:25]} Rae8 {[%clk 00:11:08]}
{[%emt 00:00:44]} 40. Ra1 {[%clk 00:35:16]} {[%emt 00:03:13]} e5 {[%clk
00:09:50]} {[%emt 00:01:49]} 41. c5+ {[%clk 00:34:01]} {[%emt 00:01:44]} Kc7
{[%clk 00:09:45]} {[%emt 00:00:36]} 42. dxe5 {[%clk 00:31:39]} {[%emt
00:02:53]} fxe5 {[%clk 00:10:06]} {[%emt 00:00:08]} 43. f5 {[%clk 00:31:49]}
{[%emt 00:00:20]} Nd5 {[%clk 00:08:30]} {[%emt 00:02:07]} 44. Rd1 {[%clk
00:31:30]} {[%emt 00:00:48]} Rd8 {[%clk 00:07:55]} {[%emt 00:01:04]} 45. Rde1
{[%clk 00:30:36]} {[%emt 00:01:25]} Rde8 {[%clk 00:08:14]} {[%emt 00:00:12]} 46.
Kf3 {[%clk 00:30:26]} {[%emt 00:00:39]} Kd7 {[%clk 00:07:20]} {[%emt 00:01:25]}
47. g5 {[%clk 00:25:40]} {[%emt 00:05:15]} hxg5 {[%clk 00:05:42]} {[%emt
00:02:09]} 48. hxg5 {[%clk 00:26:09]} Kc7 {[%clk 00:04:05]} {[%emt 00:02:06]}
49. Re4 {[%clk 00:26:01]} {[%emt 00:00:37]} Kc8 {[%clk 00:03:34]} {[%emt
00:01:03]} 50. Kg4 {[%clk 00:24:53]} {[%emt 00:01:37]} Kc7 {[%clk 00:03:57]}
{[%emt 00:00:08]} 51. Bc4 {[%clk 00:23:59]} {[%emt 00:01:24]} Kc8 {[%clk
00:03:01]} {[%emt 00:01:27]} 52. Rd1 {[%clk 00:21:45]} {[%emt 00:02:43]} Rd8
{[%clk 00:02:50]} {[%emt 00:00:42]} 53. Rd3 {[%clk 00:22:12]} {[%emt 00:00:03]}
Kc7 {[%clk 00:02:57]} {[%emt 00:00:23]} 54. b3 {[%clk 00:21:24]} {[%emt
00:01:18]} b6 {[%clk 00:03:17]} {[%emt 00:00:11]} 55. cxb6+ {[%clk 00:19:37]}
{[%emt 00:02:16]} Kxb6 {[%clk 00:03:40]} {[%emt 00:00:07]} 56. Rf3 {[%clk
00:19:53]} {[%emt 00:00:13]} Rf8 {[%clk 00:03:36]} {[%emt 00:00:35]} 57. Rf1
{[%clk 00:19:27]} {[%emt 00:00:57]} Nc3 {[%clk 00:03:20]} {[%emt 00:00:46]} 58.
Ree1 {[%clk 00:18:37]} {[%emt 00:01:20]} Nd5 {[%clk 00:03:42]} {[%emt
00:00:08]} 59. Rf2 {[%clk 00:18:37]} {[%emt 00:00:30]} e4 {[%clk 00:03:35]}
{[%emt 00:00:37]} 60. Rfe2 {[%clk 00:15:52]} {[%emt 00:03:14]} Re5 {[%clk
00:03:51]} {[%emt 00:00:14]} 61. Rxe4 {[%clk 00:15:31]} {[%emt 00:00:52]} Rexf5
{[%clk 00:04:14]} {[%emt 00:00:06]} 62. Re6 {[%clk 00:15:20]} {[%emt 00:00:41]}
R8f7 {[%clk 00:03:14]} {[%emt 00:01:31]} 63. Rc1 {[%clk 00:14:02]} {[%emt
00:01:48]} Nf4 {[%clk 00:02:18]} {[%emt 00:01:25]} 64. Rxc6+ {[%clk 00:14:03]}
{[%emt 00:00:30]} 1-0

[Event "Elite Hotels Open 2023"]
[Site "Elite Stadshotellet, Kungsgatan 6, Vaxjo, Sweden"]
[Date "2023.02.11"]
[Round "5.18"]
[White "Sevastianov, Andrii"]
[Black "Hedin, Niclas"]
[Result "1-0"]
[TimeControl "15 minutes + 5 seconds per move from move one (Round 1 - 4) / 90 minutes + 30 seconds per move from move one (Round 5 - 8)"]
[WhiteFideId "1730240"]
[BlackFideId "1720708"]
[WhiteElo "2160"]
[BlackElo "1833"]

1. e4 {[%clk 01:30:56]} {[%emt 00:00:03]} e6 {[%clk 01:30:51]} {[%emt
00:00:10]} 2. d4 {[%clk 01:31:17]} {[%emt 00:00:08]} d5 {[%clk 01:31:14]}
{[%emt 00:00:07]} 3. exd5 {[%clk 01:31:38]} {[%emt 00:00:09]} exd5 {[%clk
01:31:36]} {[%emt 00:00:08]} 4. Nf3 {[%clk 01:31:58]} {[%emt 00:00:10]} Bd6
{[%clk 01:31:55]} {[%emt 00:00:11]} 5. Bd3 {[%clk 01:32:18]} {[%emt 00:00:09]}
Ne7 {[%clk 01:31:03]} {[%emt 00:01:22]} 6. O-O {[%clk 01:31:57]} {[%emt
00:00:51]} Nbc6 {[%clk 01:31:15]} {[%emt 00:00:19]} 7. c3 {[%clk 01:32:09]}
{[%emt 00:00:17]} Bg4 {[%clk 01:31:16]} {[%emt 00:00:30]} 8. Nbd2 {[%clk
01:32:14]} {[%emt 00:00:24]} Qd7 {[%clk 01:31:23]} {[%emt 00:00:23]} 9. Re1
{[%clk 01:32:33]} {[%emt 00:00:11]} O-O-O {[%clk 01:29:57]} {[%emt 00:01:57]}
10. b4 {[%clk 01:32:43]} {[%emt 00:00:20]} Rde8 {[%clk 01:28:57]} {[%emt
00:01:30]} 11. Qa4 {[%clk 01:32:05]} {[%emt 00:01:08]} Kb8 {[%clk 01:19:03]}
{[%emt 00:10:25]} 12. b5 {[%clk 01:32:05]} {[%emt 00:00:30]} Nd8 {[%clk
01:19:24]} {[%emt 00:00:08]} 13. Ne5 {[%clk 01:32:25]} {[%emt 00:00:11]} Qc8
{[%clk 01:13:21]} {[%emt 00:06:33]} 14. Ba3 {[%clk 01:23:38]} {[%emt 00:09:17]}
Bxa3 {[%clk 01:05:28]} {[%emt 00:08:23]} 15. Qxa3 {[%clk 01:24:00]} {[%emt
00:00:08]} Bf5 {[%clk 00:56:15]} {[%emt 00:09:43]} 16. Bf1 {[%clk 01:07:52]}
{[%emt 00:16:37]} Ng6 {[%clk 00:52:49]} {[%emt 00:03:55]} 17. Qc5 {[%clk
01:03:27]} {[%emt 00:04:57]} Nxe5 {[%clk 00:50:57]} {[%emt 00:02:22]} 18. dxe5
{[%clk 01:03:19]} {[%emt 00:00:38]} Qd7 {[%clk 00:47:15]} {[%emt 00:04:11]} 19.
a4 {[%clk 01:00:53]} {[%emt 00:02:57]} Ne6 {[%clk 00:47:25]} {[%emt 00:00:19]}
20. Qb4 {[%clk 01:00:16]} {[%emt 00:01:08]} Qe7 {[%clk 00:47:09]} {[%emt
00:00:45]} 21. Qb2 {[%clk 00:55:33]} {[%emt 00:05:13]} Nc5 {[%clk 00:45:06]}
{[%emt 00:02:33]} 22. a5 {[%clk 00:51:34]} {[%emt 00:04:29]} Bd3 {[%clk
00:44:28]} {[%emt 00:01:08]} 23. Re3 {[%clk 00:46:11]} {[%emt 00:05:54]} Bxf1
{[%clk 00:44:35]} {[%emt 00:00:23]} 24. Rxf1 {[%clk 00:45:53]} {[%emt
00:00:47]} Rd8 {[%clk 00:39:32]} {[%emt 00:05:33]} 25. Nf3 {[%clk 00:41:54]}
{[%emt 00:04:28]} Rhe8 {[%clk 00:36:19]} {[%emt 00:03:43]} 26. Nd4 {[%clk
00:40:34]} {[%emt 00:01:52]} Ka8 {[%clk 00:36:19]} {[%emt 00:00:29]} 27. a6
{[%clk 00:37:25]} {[%emt 00:03:40]} Qg5 {[%clk 00:23:41]} {[%emt 00:13:07]} 28.
axb7+ {[%clk 00:36:06]} {[%emt 00:01:49]} Kxb7 {[%clk 00:19:57]} {[%emt
00:04:15]} 29. Qa3 {[%clk 00:33:22]} {[%emt 00:03:14]} Ne6 {[%clk 00:18:37]}
{[%emt 00:01:51]} 30. Qa6+ {[%clk 00:32:48]} {[%emt 00:01:03]} Ka8 {[%clk
00:18:47]} {[%emt 00:00:20]} 31. Nc6 {[%clk 00:32:47]} {[%emt 00:00:30]} 1-0

[Event "Elite Hotels Open 2023"]
[Site "Elite Stadshotellet, Kungsgatan 6, Vaxjo, Sweden"]
[Date "2023.02.11"]
[Round "6.1"]
[White "Galperin, Platon"]
[Black "Sivuk, Vitaly"]
[Result "1/2-1/2"]
[TimeControl "15 minutes + 5 seconds per move from move one (Round 1 - 4) / 90 minutes + 30 seconds per move from move one (Round 5 - 8)"]
[WhiteTitle "GM"]
[BlackTitle "GM"]
[WhiteFideId "14165414"]
[BlackFideId "14116502"]
[WhiteElo "2538"]
[BlackElo "2530"]

1. c4 {[%clk 01:22:57]} {[%emt 00:00:13]} e6 {[%clk 01:30:28]} {[%emt
00:00:32]} 2. g3 {[%clk 01:23:12]} {[%emt 00:00:16]} d5 {[%clk 01:30:50]}
{[%emt 00:00:07]} 3. Nf3 {[%clk 01:23:37]} {[%emt 00:00:05]} Nf6 {[%clk
01:31:10]} {[%emt 00:00:09]} 4. Bg2 {[%clk 01:24:03]} {[%emt 00:00:05]} Be7
{[%clk 01:31:27]} {[%emt 00:00:12]} 5. O-O {[%clk 01:24:27]} {[%emt 00:00:07]}
O-O {[%clk 01:31:49]} {[%emt 00:00:08]} 6. d4 {[%clk 01:24:48]} {[%emt
00:00:09]} dxc4 {[%clk 01:32:07]} {[%emt 00:00:12]} 7. Qc2 {[%clk 01:25:05]}
{[%emt 00:00:13]} a6 {[%clk 01:32:29]} {[%emt 00:00:08]} 8. Qxc4 {[%clk
01:25:11]} {[%emt 00:00:24]} b5 {[%clk 01:32:49]} {[%emt 00:00:11]} 9. Qc2
{[%clk 01:25:37]} {[%emt 00:00:04]} Bb7 {[%clk 01:33:13]} {[%emt 00:00:05]} 10.
Bd2 {[%clk 01:26:00]} {[%emt 00:00:07]} Be4 {[%clk 01:33:00]} {[%emt 00:00:42]}
11. Qc1 {[%clk 01:26:21]} {[%emt 00:00:10]} Bb7 {[%clk 01:33:23]} {[%emt
00:00:06]} 12. Qc2 {[%clk 01:26:39]} {[%emt 00:00:13]} Be4 {[%clk 01:33:47]}
{[%emt 00:00:06]} 13. Qc1 {[%clk 01:27:06]} {[%emt 00:00:03]} Bb7 {[%clk
01:34:11]} {[%emt 00:00:06]} 14. Qc2 {[%clk 01:27:31]} {[%emt 00:00:06]} Be4
{[%clk 01:34:37]} {[%emt 00:00:04]} 1/2-1/2

[Event "Elite Hotels Open 2023"]
[Site "Elite Stadshotellet, Kungsgatan 6, Vaxjo, Sweden"]
[Date "2023.02.11"]
[Round "6.2"]
[White "Wagner, Stephan"]
[Black "Abdrlauf, Elham"]
[Result "0-1"]
[TimeControl "15 minutes + 5 seconds per move from move one (Round 1 - 4) / 90 minutes + 30 seconds per move from move one (Round 5 - 8)"]
[BlackTitle "IM"]
[WhiteFideId "1613251"]
[BlackFideId "1533533"]
[WhiteElo "2264"]
[BlackElo "2527"]

1. c4 {[%clk 01:30:58]} {[%emt 00:00:02]} e6 {[%clk 01:30:32]} {[%emt
00:00:29]} 2. g3 {[%clk 01:31:16]} {[%emt 00:00:12]} d5 {[%clk 01:30:52]}
{[%emt 00:00:10]} 3. Bg2 {[%clk 01:31:40]} {[%emt 00:00:05]} Nf6 {[%clk
01:31:09]} {[%emt 00:00:13]} 4. Nf3 {[%clk 01:32:04]} {[%emt 00:00:05]} d4
{[%clk 01:31:17]} {[%emt 00:00:23]} 5. O-O {[%clk 01:32:12]} {[%emt 00:00:22]}
c5 {[%clk 01:31:44]} {[%emt 00:00:04]} 6. e3 {[%clk 01:32:35]} {[%emt
00:00:06]} Nc6 {[%clk 01:32:06]} {[%emt 00:00:09]} 7. exd4 {[%clk 01:32:38]}
{[%emt 00:00:26]} cxd4 {[%clk 01:32:33]} {[%emt 00:00:04]} 8. d3 {[%clk
01:33:03]} {[%emt 00:00:05]} Bd6 {[%clk 01:32:52]} {[%emt 00:00:10]} 9. Bg5
{[%clk 01:33:24]} {[%emt 00:00:09]} h6 {[%clk 01:33:15]} {[%emt 00:00:07]} 10.
Bxf6 {[%clk 01:33:50]} {[%emt 00:00:05]} Qxf6 {[%clk 01:33:41]} {[%emt
00:00:03]} 11. Nbd2 {[%clk 01:34:14]} {[%emt 00:00:05]} Qe7 {[%clk 01:33:53]}
{[%emt 00:00:19]} 12. Re1 {[%clk 01:34:04]} {[%emt 00:00:41]} O-O {[%clk
01:34:14]} {[%emt 00:00:08]} 13. a3 {[%clk 01:32:28]} {[%emt 00:02:07]} a5
{[%clk 01:34:21]} {[%emt 00:00:22]} 14. Nb3 {[%clk 01:31:30]} {[%emt 00:01:28]}
Qf6 {[%clk 01:34:32]} {[%emt 00:00:19]} 15. c5 {[%clk 01:30:38]} {[%emt
00:01:23]} Bc7 {[%clk 01:33:44]} {[%emt 00:01:18]} 16. Rc1 {[%clk 01:28:09]}
{[%emt 00:02:59]} e5 {[%clk 01:30:36]} {[%emt 00:03:38]} 17. Nbd2 {[%clk
01:23:29]} {[%emt 00:05:09]} Be6 {[%clk 01:12:59]} {[%emt 00:18:07]} 18. b3
{[%clk 01:16:28]} {[%emt 00:07:32]} Bd5 {[%clk 00:55:17]} {[%emt 00:18:13]} 19.
Nc4 {[%clk 01:11:01]} {[%emt 00:05:57]} Rae8 {[%clk 00:49:53]} {[%emt
00:05:53]} 20. Nfd2 {[%clk 00:50:18]} {[%emt 00:21:12]} Bxg2 {[%clk 00:42:06]}
{[%emt 00:08:18]} 21. Kxg2 {[%clk 00:50:46]} {[%emt 00:00:01]} Qe6 {[%clk
00:41:15]} {[%emt 00:01:22]} 22. Qf3 {[%clk 00:47:22]} {[%emt 00:03:54]} f5
{[%clk 00:41:02]} {[%emt 00:00:43]} 23. Kg1 {[%clk 00:46:58]} {[%emt 00:00:54]}
Kh7 {[%clk 00:31:55]} {[%emt 00:09:37]} 24. b4 {[%clk 00:32:18]} {[%emt
00:15:10]} axb4 {[%clk 00:32:18]} {[%emt 00:00:07]} 25. axb4 {[%clk 00:32:44]}
{[%emt 00:00:04]} Nxb4 {[%clk 00:23:49]} {[%emt 00:08:59]} 26. Qxb7 {[%clk
00:33:03]} {[%emt 00:00:11]} Nd5 {[%clk 00:23:27]} {[%emt 00:00:52]} 27. Nb6
{[%clk 00:03:33]} {[%emt 00:30:01]} Bxb6 {[%clk 00:22:42]} {[%emt 00:01:15]} 28.
cxb6 {[%clk 00:04:01]} {[%emt 00:00:01]} Nb4 {[%clk 00:19:45]} {[%emt
00:03:28]} 29. Rc7 {[%clk 00:02:53]} {[%emt 00:01:38]} Qg6 {[%clk 00:19:22]}
{[%emt 00:00:52]} 30. Re7 {[%clk 00:01:31]} {[%emt 00:01:52]} Nxd3 {[%clk
00:18:45]} {[%emt 00:01:07]} 31. Rxe8 {[%clk 00:01:59]} {[%emt 00:00:02]} Rxe8
{[%clk 00:19:05]} {[%emt 00:00:11]} 32. Rb1 {[%clk 00:02:22]} {[%emt 00:00:06]}
e4 {[%clk 00:16:44]} {[%emt 00:02:51]} 33. Qd5 {[%clk 00:01:54]} {[%emt
00:00:58]} Nf4 {[%clk 00:17:10]} {[%emt 00:00:05]} 34. Qb5 {[%clk 00:01:39]}
{[%emt 00:00:45]} e3 {[%clk 00:09:59]} {[%emt 00:07:40]} 35. fxe3 {[%clk
00:01:27]} {[%emt 00:00:42]} Rxe3 {[%clk 00:07:31]} {[%emt 00:02:58]} 36. Nf1
{[%clk 00:01:27]} {[%emt 00:00:31]} Ne2+ {[%clk 00:07:39]} {[%emt 00:00:23]} 37.
Kf2 {[%clk 00:01:01]} {[%emt 00:00:55]} Nc3 {[%clk 00:08:08]} {[%emt 00:00:01]}
38. Qb2 {[%clk 00:00:46]} {[%emt 00:00:45]} Nxb1 {[%clk 00:04:18]} {[%emt
00:04:20]} 39. Nxe3 {[%clk 00:01:13]} {[%emt 00:00:03]} Nc3 {[%clk 00:04:39]}
{[%emt 00:00:09]} 40. b7 {[%clk 00:00:49]} {[%emt 00:00:54]} dxe3+ {[%clk
00:05:05]} {[%emt 00:00:04]} 41. Kg1 {[%clk 00:00:49]} {[%emt 00:00:29]} e2
{[%clk 00:03:36]} {[%emt 00:01:59]} 42. Qxc3 {[%clk 00:01:18]} {[%emt
00:00:01]} Qb6+ {[%clk 00:04:01]} {[%emt 00:00:04]} 43. Kg2 {[%clk 00:01:32]}
{[%emt 00:00:16]} Qxb7+ {[%clk 00:04:30]} {[%emt 00:00:02]} 44. Kf2 {[%clk
00:01:39]} {[%emt 00:00:22]} Qh1 {[%clk 00:04:53]} {[%emt 00:00:07]} 45. Kxe2
{[%clk 00:01:41]} {[%emt 00:00:29]} Qxh2+ {[%clk 00:05:19]} {[%emt 00:00:04]}
46. Kf3 {[%clk 00:02:01]} {[%emt 00:00:09]} Qh1+ {[%clk 00:05:48]} {[%emt
00:00:01]} 47. Kf2 {[%clk 00:02:23]} {[%emt 00:00:08]} Qe4 {[%clk 00:06:12]}
{[%emt 00:00:06]} 48. Qc7 {[%clk 00:02:37]} {[%emt 00:00:16]} Qe6 {[%clk
00:06:10]} {[%emt 00:00:32]} 49. Kf3 {[%clk 00:02:24]} {[%emt 00:00:43]} Kg6
{[%clk 00:06:31]} {[%emt 00:00:09]} 50. Kf2 {[%clk 00:02:45]} {[%emt 00:00:10]}
Qd5 {[%clk 00:04:40]} {[%emt 00:02:20]} 51. Qb6+ {[%clk 00:02:25]} {[%emt
00:00:51]} Kh5 {[%clk 00:05:03]} {[%emt 00:00:04]} 52. Qc7 {[%clk 00:02:39]}
{[%emt 00:00:18]} Qd4+ {[%clk 00:05:14]} {[%emt 00:00:19]} 53. Kf3 {[%clk
00:03:04]} {[%emt 00:00:05]} g6 {[%clk 00:03:42]} {[%emt 00:02:03]} 54. Qf7
{[%clk 00:00:43]} {[%emt 00:02:51]} Qe4+ {[%clk 00:03:10]} {[%emt 00:01:01]} 55.
Kf2 {[%clk 00:01:11]} {[%emt 00:00:02]} Kg5 {[%clk 00:03:21]} {[%emt 00:00:19]}
56. Qf8 {[%clk 00:01:06]} {[%emt 00:00:35]} Kg4 {[%clk 00:02:38]} {[%emt
00:01:13]} 57. Qf6 {[%clk 00:00:43]} {[%emt 00:00:54]} Qf3+ {[%clk 00:02:59]}
{[%emt 00:00:09]} 58. Kg1 {[%clk 00:01:09]} {[%emt 00:00:03]} Qxg3+ {[%clk
00:03:26]} {[%emt 00:00:03]} 59. Kh1 {[%clk 00:01:34]} {[%emt 00:00:05]} Qh4+
{[%clk 00:03:50]} {[%emt 00:00:06]} 0-1